bitfinex/quotes_ETHUSD_20241204
["timestamp","ask_amount","ask_price","bid_price","bid_amount"]
[1733352677509,14.73334029,3851.7,3851.6,0.2]
[1733352677704,15.44436593,3851.7,3851.6,0.2]
[1733352677918,20.20837208,3851.7,3851.6,0.2]
[1733352678122,18.04061593,3851.7,3851.6,0.2]
[1733352678314,0.0817946,3850.2,3850.1,2.59733]
[1733352678740,0.0817946,3849.8,3849.7,2.5976]
[1733352679945,0.0817946,3849.8,3849.7,5.5976]
[1733352680606,0.0817946,3849.8,3849.7,5.5071]
[1733352680806,8.89,3850.2,3849.8,3.0]
[1733352681045,8.89,3850.2,3850.1,5.59733]
[1733352681603,8.79,3850.2,3850.1,6.70883]
[1733352683882,1.3218946,3850.2,3850.1,2.59733]
[1733352685939,1.45408406,3850.2,3850.1,2.59733]
[1733352686322,0.0817946,3850.2,3850.1,2.59733]
[1733352687639,0.1817946,3850.2,3850.1,2.59733]
[1733352688332,0.1817946,3850.2,3850.1,5.59733]
[1733352690931,0.1817946,3850.2,3850.1,2.59733]
[1733352691130,1.2876946,3850.2,3850.1,2.59733]
[1733352692751,0.1,3849.8,3849.7,5.5976]
[1733352692964,0.1,3849.8,3849.7,2.5976]
[1733352696880,0.0817946,3849.3,3849.2,2.7614768]
[1733352697096,0.0817946,3849.3,3849.2,0.1635868]
[1733352697591,1.11306882,3849.3,3849.2,0.1635868]
[1733352698104,2.21246882,3849.3,3849.2,0.1635868]
[1733352701008,2.45402066,3849.3,3849.2,0.1635868]
[1733352701245,2.21246882,3849.3,3849.2,0.1635868]
[1733352701396,1.42274644,3849.3,3849.2,0.1635868]
[1733352702539,1.42274644,3849.3,3848.5,3.34839]
[1733352702540,1.1363,3849.2,3848.5,0.75]
[1733352702833,0.1,3849.4,3848.5,0.75]
[1733352702834,1.2260946,3848.6,3848.5,0.75]
[1733352703937,1.46764644,3848.6,3848.5,0.75]
[1733352704098,1.67306363,3848.6,3848.5,0.75]
[1733352705622,10.46306363,3848.6,3848.5,0.75]
[1733352705817,10.84958904,3848.6,3848.5,0.75]
[1733352706709,10.85016397,3848.6,3848.5,0.75]
[1733352707121,14.85016397,3848.6,3848.5,0.75]
[1733352707518,14.85016397,3848.6,3847.7,2.59889]
[1733352707519,8.89,3847.8,3847.7,2.59889]
[1733352708037,8.14,3847.8,3847.7,2.59889]
[1733352708245,9.2801,3847.8,3847.7,2.59889]
[1733352708479,0.0817946,3846.8,3846.7,2.59963]
[1733352708684,1.2218946,3846.8,3846.7,2.59963]
[1733352708847,0.0817946,3846.1,3846.0,2.6001]
[1733352709178,0.0817946,3846.1,3846.0,3.120134]
[1733352709743,0.0817946,3846.1,3846.0,2.6001]
[1733352709975,0.0817946,3846.1,3846.0,5.6001]
[1733352712858,0.40288156,3847.7,3846.0,5.6001]
[1733352712859,0.0817946,3846.6,3846.5,2.5997]
[1733352713082,0.0817946,3846.8,3846.7,2.59963]
[1733352713415,0.0817946,3846.8,3846.7,6.66153]
[1733352713763,0.0817946,3846.8,3846.7,5.59963]
[1733352715597,0.32278529,3847.5,3847.4,2.59915]
[1733352715805,0.0817946,3847.5,3847.4,2.59915]
[1733352716163,8.2217946,3847.6,3847.4,2.59915]
[1733352716466,0.0817946,3847.6,3847.4,2.59915]
[1733352716659,0.0817946,3847.6,3847.5,2.59909]
[1733352719303,0.0817946,3847.6,3847.5,5.59909]
[1733352722899,0.32337991,3847.6,3847.5,5.59909]
[1733352723118,0.0817946,3847.6,3847.5,5.59909]
[1733352723308,0.32341041,3847.6,3847.5,5.59909]
[1733352723515,0.0817946,3847.6,3847.5,5.59909]
[1733352724705,0.07546641,3847.9,3847.7,5.59895]
[1733352724706,0.0817946,3847.8,3847.7,5.59895]
[1733352724905,0.32358059,3847.8,3847.7,5.59895]
[1733352726806,0.24178599,3847.8,3847.7,5.59895]
[1733352727006,0.07546641,3847.9,3847.8,6.71788]
[1733352728743,0.31754257,3847.9,3847.8,6.71788]
[1733352730229,0.39933717,3847.9,3847.8,5.59888]
[1733352734442,0.15726101,3847.9,3847.8,5.59888]
[1733352734820,1.21566101,3847.9,3847.8,5.59888]
[1733352735033,1.45800627,3847.9,3847.8,5.59888]
[1733352735413,1.21566101,3847.9,3847.8,5.59888]
[1733352735927,0.39960504,3847.9,3847.8,5.59888]
[1733352736325,0.15726101,3847.9,3847.8,5.59888]
[1733352737053,0.39959185,3847.9,3847.8,5.59888]
[1733352737416,0.39137476,3847.9,3847.8,5.59888]
[1733352737849,0.14904392,3847.9,3847.8,5.59888]
[1733352738413,0.14904392,3847.9,3847.8,6.66878]
[1733352741585,0.39162343,3847.9,3847.8,6.66878]
[1733352741789,0.14904392,3847.9,3847.8,6.66878]
[1733352741991,0.30981714,3847.9,3847.8,6.66878]
[1733352742709,0.39161174,3847.9,3847.8,6.66878]
[1733352743398,0.39190931,3847.9,3847.8,6.66878]
[1733352743976,0.31011471,3847.9,3847.8,5.59888]
[1733352744572,0.39190931,3847.9,3847.8,5.59888]
[1733352746407,0.31011471,3847.9,3847.8,5.59888]
[1733352746718,0.69922989,3847.9,3847.8,5.59888]
[1733352747090,0.31011471,3847.9,3847.8,5.59888]
[1733352749179,0.78084576,3847.9,3847.8,5.59888]
[1733352749422,0.39190931,3847.9,3847.8,5.59888]
[1733352749794,0.78085287,3847.9,3847.8,5.59888]
[1733352749993,0.39190931,3847.9,3847.8,5.59888]
[1733352750526,0.78085319,3847.9,3847.8,5.59888]
[1733352750903,0.39190931,3847.9,3847.8,5.59888]
[1733352751338,0.78087194,3847.9,3847.8,5.59888]
[1733352751649,0.39190931,3847.9,3847.8,5.59888]
[1733352751804,0.78087236,3847.9,3847.8,5.59888]
[1733352753250,1.81847236,3847.9,3847.8,5.59888]
[1733352753403,1.9368196,3847.9,3847.8,5.59888]
[1733352753604,1.9368196,3847.9,3847.8,2.59888]
[1733352754213,1.9368196,3847.9,3847.3,2.59919]
[1733352754436,0.0817946,3847.7,3847.5,2.59903]
[1733352754642,0.63182844,3847.6,3847.3,2.59919]
[1733352754837,1.28046539,3847.5,3847.4,5.59915]
[1733352755348,0.24286539,3847.5,3847.4,5.59915]
[1733352755635,0.71324952,3847.5,3847.4,5.59915]
[1733352755843,1.75084952,3847.5,3847.4,3.0]
[1733352756001,0.0817946,3847.0,3846.6,2.59969]
[1733352756198,0.0817946,3847.0,3846.9,5.59949]
[1733352756402,0.32458167,3847.0,3846.9,5.59949]
[1733352756642,0.32458167,3847.0,3846.9,2.59949]
[1733352756643,0.32460476,3847.0,3846.9,2.59949]
[1733352757409,0.32448386,3847.0,3846.9,2.59949]
[1733352757847,0.32448386,3847.0,3846.9,5.59949]
[1733352759347,0.0817946,3847.0,3846.9,5.59949]
[1733352759855,0.32436843,3847.0,3846.9,5.59949]
[1733352760149,0.0817946,3847.0,3846.9,5.59949]
[1733352760538,0.324367,3847.0,3846.9,5.59949]
[1733352761318,0.32437624,3847.0,3846.9,5.59949]
[1733352761515,0.0817946,3847.0,3846.9,5.59949]
[1733352761740,0.32438646,3847.0,3846.9,5.59949]
[1733352762253,0.0817946,3847.0,3846.9,5.59949]
[1733352762560,0.32435438,3847.0,3846.9,5.59949]
[1733352762721,0.3243575,3847.0,3846.9,5.59949]
[1733352763370,0.0817946,3847.0,3846.9,5.59949]
[1733352764426,0.32428769,3847.0,3846.9,5.59949]
[1733352765071,0.32428769,3847.0,3846.4,2.59978]
[1733352765072,0.0817946,3846.8,3846.7,5.59961]
[1733352766066,0.0817946,3846.4,3846.2,3.0]
[1733352767058,0.0817946,3846.4,3846.2,5.59995]
[1733352771215,0.0817946,3846.4,3846.2,2.59995]
[1733352772736,1.1194,3846.5,3845.7,6.12634515]
[1733352772737,0.0817946,3846.0,3845.9,0.259]
[1733352773023,0.0817946,3846.0,3845.9,5.85914]
[1733352774524,0.0817946,3846.0,3845.9,5.60014]
[1733352780836,0.0817946,3846.0,3845.9,2.60014]
[1733352781041,0.0817946,3845.8,3845.7,5.6003]
[1733352787800,0.0817946,3845.8,3845.4,0.1635868]
[1733352788029,0.0817946,3845.8,3845.7,3.0]
[1733352789109,0.0817946,3845.8,3845.7,5.6003]
[1733352789524,1.1506946,3845.8,3845.7,5.6003]
[1733352789912,1.39313531,3845.8,3845.7,5.6003]
[1733352790336,0.32423531,3845.8,3845.7,5.6003]
[1733352790837,1.1506946,3845.8,3845.7,5.6003]
[1733352791162,1.39317819,3845.8,3845.7,5.6003]
[1733352794040,1.1506946,3845.8,3845.7,5.6003]
[1733352794343,1.39341459,3845.8,3845.7,5.6003]
[1733352795950,1.38569181,3845.8,3845.7,5.6003]
[1733352797448,1.38569181,3845.8,3845.7,2.6003]
[1733352797751,1.38586508,3845.8,3845.7,2.6003]
[1733352797951,1.77444673,3845.8,3845.7,2.6003]
[1733352798255,1.38586508,3845.8,3845.7,2.6003]
[1733352799121,1.77440967,3845.8,3845.7,2.6003]
[1733352801550,1.14297182,3845.8,3845.7,2.6003]
[1733352801848,1.77452769,3845.8,3845.7,2.6003]
[1733352802748,0.07407182,3845.5,3845.4,3.1635868]
[1733352802908,0.70562769,3845.5,3845.4,3.1635868]
[1733352803660,0.70562769,3845.5,3844.9,2.6008]
[1733352803948,0.07407182,3845.0,3844.9,2.60084]
[1733352804120,0.31697792,3845.0,3844.9,2.60084]
[1733352804647,0.31682743,3845.0,3844.9,2.60084]
[1733352804812,0.45521017,3845.0,3844.9,2.60084]
[1733352805007,0.84356819,3845.0,3844.9,2.60084]
[1733352805349,0.45521017,3845.0,3844.9,2.60084]
[1733352805520,0.31682743,3845.0,3844.9,2.60084]
[1733352810958,0.24275561,3845.0,3844.9,2.60084]
[1733352811194,0.31682743,3845.0,3844.9,2.60084]
[1733352811333,0.07407182,3845.2,3845.1,2.60071]
[1733352811662,0.31660238,3845.2,3845.1,2.60071]
[1733352812363,2.31416816,3845.2,3845.1,2.60071]
[1733352812929,2.70224714,3845.2,3845.1,2.60071]
[1733352813451,10.45416816,3845.2,3845.1,2.60071]
[1733352813866,10.8420999,3845.2,3845.1,2.60071]
[1733352814065,10.45416816,3845.2,3845.1,2.60071]
[1733352814587,10.84207195,3845.2,3845.1,2.60071]
[1733352814769,10.84196487,3845.2,3845.1,2.60071]
[1733352814944,10.2116376,3845.2,3845.1,2.60071]
[1733352815143,10.84195998,3845.2,3845.1,2.60071]
[1733352815384,10.45406928,3845.2,3845.1,2.60071]
[1733352815586,10.84196357,3845.2,3845.1,2.60071]
[1733352815883,10.45406928,3845.2,3845.1,2.60071]
[1733352816378,10.84195916,3845.2,3845.1,2.60071]
[1733352816586,10.84194792,3845.2,3845.1,2.60071]
[1733352817256,9.72884939,3845.2,3845.1,2.60071]
[1733352817461,9.34096928,3845.2,3845.1,2.60071]
[1733352817647,9.72878881,3845.2,3845.1,2.60071]
[1733352817867,9.34096928,3845.2,3845.1,2.60071]
[1733352818271,10.26316928,3845.2,3845.1,2.60071]
[1733352818646,10.65085303,3845.2,3845.1,2.60071]
[1733352818852,10.26316928,3845.2,3845.1,2.60071]
[1733352819288,2.51083612,3845.2,3845.1,2.60071]
[1733352819461,2.51083612,3845.2,3844.8,2.60086]
[1733352819462,0.07407182,3844.4,3844.3,5.60125]
[1733352820786,0.07407182,3844.4,3844.3,2.60125]
[1733352826390,0.31624657,3844.4,3844.3,2.60125]
[1733352826921,0.31626593,3844.4,3844.3,2.60125]
[1733352827083,0.07407182,3844.4,3844.3,2.60125]
[1733352827600,0.8869,3844.6,3844.5,2.60111]
[1733352827994,1.12914114,3844.6,3844.5,2.60111]
[1733352828327,1.12914452,3844.6,3844.5,2.60111]
[1733352829696,0.24224452,3844.6,3844.5,2.60111]
[1733352830541,0.07782114,3844.7,3844.6,2.60105]
[1733352830742,0.32032825,3844.7,3844.6,2.60105]
[1733352831539,0.07407182,3844.4,3844.3,2.60119]
[1733352831745,0.31657893,3844.4,3844.3,2.60119]
[1733352832447,0.07407182,3844.0,3843.6,0.8883]
[1733352832606,0.07407182,3844.0,3843.5,1.08091479]
[1733352832607,0.07407182,3844.0,3843.9,5.60152]
[1733352833149,0.07407182,3844.0,3843.4,0.51383624]
[1733352833150,1.25209843,3844.0,3843.8,2.60158]
[1733352833302,0.16401413,3843.9,3843.8,2.60158]
[1733352833501,0.40650286,3843.9,3843.8,2.60158]
[1733352833726,0.16401413,3843.9,3843.8,2.60158]
[1733352834822,0.16401413,3843.9,3843.3,3.8883]
[1733352834823,0.07407182,3843.4,3843.3,3.49023]
[1733352835027,0.07407182,3843.4,3843.3,5.60193]
[1733352838417,0.07407182,3843.4,3843.3,2.60193]
[1733352839051,0.07407182,3843.6,3843.5,2.60179]
[1733352839761,0.99802323,3843.8,3843.7,2.60165]
[1733352839920,1.2402105,3843.8,3843.7,2.60165]
[1733352840120,0.99802323,3843.8,3843.7,2.60165]
[1733352840437,1.24021593,3843.8,3843.7,2.60165]
[1733352840762,8.14,3843.9,3843.6,0.9052]
[1733352840956,8.14,3843.9,3843.8,2.60159]
[1733352840957,8.21407182,3843.9,3843.8,2.60159]
[1733352841257,0.07407182,3843.5,3843.4,0.7484]
[1733352841422,0.07407182,3843.5,3843.4,6.35026]
[1733352842066,0.941,3844.1,3843.4,6.35026]
[1733352842067,0.07407182,3843.8,3843.7,2.60165]
[1733352843414,0.07407182,3843.8,3843.7,3.35005]
[1733352845262,0.07407182,3843.8,3843.7,2.60165]
[1733352845766,0.3163471,3843.8,3843.7,2.60165]
[1733352846172,0.07407182,3843.8,3843.7,2.60165]
[1733352847474,0.07407182,3843.8,3843.0,1.08091479]
[1733352847475,0.07407182,3843.4,3843.3,2.60193]
[1733352847677,0.89057182,3843.4,3843.3,2.60193]
[1733352848118,1.13289586,3843.4,3843.3,2.60193]
[1733352848315,0.89057182,3843.4,3843.3,2.60193]
[1733352848612,0.07407182,3843.4,3843.3,2.60193]
[1733352849702,0.89057182,3843.1,3843.0,2.60212]
[1733352850021,1.13296034,3843.1,3843.0,2.60212]
[1733352850315,1.28503757,3843.1,3843.0,2.60212]
[1733352851351,1.28503757,3843.1,3842.9,0.02909354]
[1733352851516,0.24238852,3843.0,3842.9,2.63128354]
[1733352852381,1.04264905,3843.1,3843.0,2.60213]
[1733352852595,0.46837319,3843.1,3843.0,2.60213]
[1733352853120,0.07407182,3843.1,3843.0,2.60213]
[1733352854426,0.07407182,3843.4,3843.3,2.60193]
[1733352855131,0.31631597,3843.4,3843.3,2.60193]
[1733352855731,0.07407182,3843.4,3843.3,2.60193]
[1733352855928,0.07407182,3843.6,3843.5,2.60179]
[1733352856228,0.30918494,3843.6,3843.5,2.60179]
[1733352856532,0.24223973,3843.6,3843.5,2.60179]
[1733352856736,8.59455335,3844.1,3844.0,2.60145]
[1733352856890,9.3931734,3844.1,3844.0,2.60145]
[1733352857290,8.44921806,3844.1,3844.0,2.60145]
[1733352857592,0.30921806,3844.1,3844.0,2.60145]
[1733352858729,0.30921806,3844.1,3844.0,2.60608589]
[1733352858905,0.24227285,3844.1,3844.0,2.60608589]
[1733352859633,0.06694521,3844.3,3844.2,2.60132]
[1733352859788,1.32811094,3844.3,3844.2,2.60132]
[1733352859995,0.24239965,3844.3,3844.2,3.34972]
[1733352860732,1.13571555,3844.6,3844.5,2.60111]
[1733352860934,1.37819417,3844.6,3844.5,2.60111]
[1733352861095,1.13571555,3844.6,3844.5,2.60111]
[1733352861294,0.00374932,3844.7,3844.5,3.34951]
[1733352861495,0.00374932,3844.7,3844.6,2.60105]
[1733352862495,0.00374932,3844.7,3844.6,3.196106]
[1733352862708,0.00374932,3844.7,3844.6,6.196106]
[1733352864508,0.00374932,3844.7,3844.6,6.944506]
[1733352865046,0.00374932,3844.7,3844.6,8.16479364]
[1733352865217,9.32e-06,3844.7,3844.6,8.164788]
[1733352865421,9.32e-06,3844.7,3844.6,8.16456142]
[1733352865748,9.32e-06,3844.7,3844.6,9.80145023]
[1733352866245,0.30900806,3846.0,3844.6,7.494506]
[1733352866407,0.06694521,3846.0,3845.9,2.60017]
[1733352866607,0.30900806,3846.0,3845.9,2.60017]
[1733352866838,0.06694521,3846.0,3845.9,2.60017]
[1733352868047,0.20231299,3846.2,3845.9,2.60017]
[1733352869211,0.13536778,3846.2,3846.0,2.60009]
[1733352869513,0.13536778,3846.2,3846.1,2.60003]
[1733352870647,1.04142014,3846.8,3846.1,0.7484]
[1733352870808,1.04142014,3846.8,3845.6,3.0]
[1733352870809,0.92163872,3846.7,3846.4,2.59981]
[1733352871008,1.0570413,3846.7,3845.6,2.60037]
[1733352871309,0.06694521,3846.8,3846.5,2.59971]
[1733352871659,0.06694521,3846.8,3846.6,2.59968]
[1733352871839,0.06694521,3846.8,3846.4,0.6246]
[1733352872013,0.06694521,3846.8,3846.6,2.59969]
[1733352872449,8.14,3846.9,3846.6,2.59969]
[1733352872638,0.89750671,3846.8,3846.6,2.59969]
[1733352872949,0.03496709,3847.0,3846.6,2.59969]
[1733352873151,0.03496709,3847.0,3846.1,2.59998]
[1733352873152,0.03496709,3847.0,3846.0,0.6246]
[1733352873759,0.03496709,3847.0,3846.4,2.59981]
[1733352874501,0.03496709,3847.0,3846.0,0.6246]
[1733352874502,0.03496709,3847.0,3846.5,2.59976]
[1733352874999,0.03496709,3847.0,3846.3,2.59988]
[1733352875507,0.2319722,3847.0,3846.0,3.6246]
[1733352875718,0.2319722,3847.0,3846.1,2.60003]
[1733352875929,0.2319722,3847.0,3846.3,2.59983]
[1733352876211,0.2319722,3847.0,3846.4,2.59982]
[1733352877312,0.2319722,3847.0,3846.5,2.59975]
[1733352878599,0.2319722,3847.0,3846.0,6.22466]
[1733352878815,0.2319722,3847.0,3846.3,2.59988]
[1733352879416,0.7854,3846.9,3846.0,0.6246]
[1733352879733,0.7854,3846.9,3846.2,2.59996]
[1733352879917,0.7854,3846.9,3845.7,2.60026]
[1733352879918,0.7854,3846.9,3846.0,2.6001]
[1733352880089,0.2319722,3847.0,3845.4,0.6246]
[1733352880090,0.55,3846.8,3845.4,0.6246]
[1733352880289,0.7854,3846.6,3845.4,0.6246]
[1733352880493,0.7854,3846.4,3845.1,0.51288845]
[1733352880795,0.7854,3846.4,3845.3,2.60051]
[1733352881394,0.7854,3846.4,3844.4,0.2]
[1733352881395,0.55,3846.2,3844.6,0.6246]
[1733352881713,3.14997,3846.2,3845.0,3.0]
[1733352881925,0.7854,3845.9,3845.0,3.0]
[1733352882508,0.55,3845.8,3844.6,0.6246]
[1733352882808,6.35731521,3845.6,3844.5,3.12573317]
[1733352883336,0.7854,3845.5,3844.5,3.12573317]
[1733352883717,0.7854,3845.5,3844.2,0.6246]
[1733352884039,0.7854,3845.5,3844.6,3.0]
[1733352884203,1.49965852,3845.5,3844.6,3.0]
[1733352884810,1.49965852,3845.5,3844.3,2.60124]
[1733352885008,4.10009852,3845.5,3844.4,3.0]
[1733352885838,4.10009852,3845.5,3844.5,3.0]
[1733352886021,0.78570437,3845.4,3844.5,3.0]
[1733352886430,1.02748848,3845.4,3844.5,3.0]
[1733352887233,0.78570437,3845.4,3844.5,3.0]
[1733352887442,0.78570437,3845.4,3844.7,3.0]
[1733352887737,0.7854,3845.5,3844.7,3.0]
[1733352887738,1.02729093,3845.5,3844.7,2.60097]
[1733352887901,1.02729093,3845.5,3844.5,2.60111]
[1733352887902,0.7854,3845.5,3844.5,2.60111]
[1733352888105,0.7854,3845.5,3844.8,2.60091]
[1733352888424,0.24199886,3845.4,3844.8,2.60091]
[1733352888734,0.7854,3845.5,3844.8,2.60091]
[1733352888983,0.7854,3845.5,3844.4,3.0]
[1733352889164,0.7854,3845.5,3844.9,2.60084]
[1733352889459,0.24211537,3845.4,3844.9,2.60084]
[1733352889600,0.7854,3845.5,3844.9,2.60084]
[1733352889797,0.24212366,3845.4,3844.9,2.60084]
[1733352890042,0.7854,3845.5,3845.1,0.0065611]
[1733352890445,0.24222788,3845.4,3845.1,0.0065611]
[1733352890735,0.7854,3845.5,3845.1,0.0065611]
[1733352890932,0.24223922,3845.4,3845.1,0.0065611]
[1733352891124,0.7854,3845.5,3845.1,0.0065611]
[1733352891320,0.2422677,3845.4,3845.1,0.0065611]
[1733352891536,0.7854,3845.5,3845.1,0.0065611]
[1733352891739,0.24229428,3845.4,3845.1,0.0065611]
[1733352891944,0.3870187,3845.8,3845.1,0.0065611]
[1733352892104,0.24231242,3845.7,3845.1,0.0065611]
[1733352892299,0.62933112,3845.7,3845.1,0.0065611]
[1733352892531,0.24231242,3845.6,3845.1,0.0065611]
[1733352892741,0.24231242,3845.5,3845.1,0.0065611]
[1733352892954,0.24231242,3845.4,3845.1,0.0065611]
[1733352893133,0.3870187,3845.7,3845.1,0.0065611]
[1733352893332,0.24237775,3845.6,3845.1,0.0065611]
[1733352893530,0.24237775,3845.5,3845.1,0.0065611]
[1733352893730,0.24237775,3845.4,3845.1,0.0065611]
[1733352893979,0.13544233,3845.4,3845.1,0.0065611]
[1733352897268,0.13544233,3845.4,3845.3,2.60057]
[1733352897426,0.38779717,3846.5,3845.3,2.60057]
[1733352897632,0.2423712,3846.4,3845.8,2.60022]
[1733352897843,0.13541871,3846.5,3845.8,2.60022]
[1733352897844,0.2423712,3846.3,3845.8,2.60022]
[1733352898056,0.13541871,3846.5,3845.8,2.60022]
[1733352898223,0.24241269,3846.4,3845.8,2.60022]
[1733352898422,0.24241269,3846.3,3845.3,3.0]
[1733352898746,0.13541871,3846.5,3845.7,2.60029]
[1733352898947,0.24240402,3846.4,3845.7,2.60029]
[1733352899262,0.24240402,3846.4,3845.3,3.0]
[1733352899263,0.24240402,3846.3,3845.8,2.60018]
[1733352899471,0.24240402,3846.2,3845.8,2.60018]
[1733352899769,0.7887,3846.6,3845.8,2.60018]
[1733352899969,0.24240256,3846.5,3845.8,2.60018]
[1733352900289,0.24240256,3846.4,3845.8,2.60018]
[1733352900470,0.24240256,3846.3,3845.9,2.60014]
[1733352900676,0.7887,3846.6,3845.2,0.6246]
[1733352900878,0.24238963,3846.5,3845.9,2.60013]
[1733352901189,0.7887,3846.6,3845.3,3.70804335]
[1733352901190,0.24238963,3846.4,3845.3,3.70804335]
[1733352901398,0.7887,3846.6,3845.6,2.60037]
[1733352901569,0.7887,3846.6,3846.3,2.59988]
[1733352902307,0.24244257,3846.5,3845.7,2.6003]
[1733352902588,0.03496709,3847.0,3846.9,2.59949]
[1733352903816,0.03496709,3847.0,3846.9,5.59949]
[1733352904099,0.00123766,3847.0,3846.9,5.59949]
[1733352904248,0.00123766,3847.0,3846.9,6.93213335]
[1733352904657,7.66e-06,3847.0,3846.9,6.93213335]
[1733352904857,0.24217744,3848.1,3847.9,0.6246]
[1733352905106,0.8251,3849.0,3848.0,0.37829963]
[1733352905252,0.24213084,3848.9,3848.8,2.59821]
[1733352905454,0.8251,3849.0,3848.0,1.17001795]
[1733352905695,0.8251,3849.0,3848.9,2.59814]
[1733352906210,0.8251,3849.6,3848.6,0.02598002]
[1733352906358,0.8251,3849.6,3849.3,2.59787]
[1733352906359,1.22830452,3849.6,3849.3,2.59787]
[1733352906558,0.13530096,3850.4,3848.4,2.62445721]
[1733352906559,4.03204521,3850.3,3848.6,0.6246]
[1733352906758,4.03204521,3850.3,3849.7,2.59759]
[1733352906988,4.03204521,3850.3,3849.3,3.02597485]
[1733352906989,0.8251,3850.3,3849.3,3.02597485]
[1733352907187,0.8251,3850.3,3850.2,2.59726]
[1733352907370,3.20694521,3851.2,3849.7,3.0]
[1733352907371,0.38674775,3851.0,3849.7,3.0]
[1733352907572,0.38674775,3851.0,3850.3,2.59715]
[1733352907573,0.7649,3850.9,3850.3,2.59715]
[1733352907789,0.7649,3850.9,3849.4,0.6246]
[1733352907790,0.7649,3850.9,3850.6,2.59698]
[1733352908190,0.7649,3850.9,3849.4,0.6246]
[1733352908191,0.7649,3850.9,3849.9,3.0]
[1733352908482,0.7649,3850.9,3850.5,2.59705]
[1733352910008,0.7649,3850.9,3849.8,0.53091734]
[1733352910324,0.7649,3850.9,3849.8,0.50807953]
[1733352910506,0.7649,3850.9,3850.3,3.0]
[1733352910678,0.7649,3850.9,3849.9,3.0]
[1733352910877,0.7649,3850.9,3850.3,3.0]
[1733352911913,0.7649,3850.9,3849.8,3.50807953]
[1733352912417,0.7649,3850.9,3850.2,3.0]
[1733352913114,0.7649,3850.9,3850.0,3.0]
[1733352913284,0.7649,3850.9,3849.8,0.50807953]
[1733352913487,0.7649,3850.9,3850.1,3.0]
[1733352913704,0.7649,3850.9,3849.5,2.59768]
[1733352914293,0.336159,3850.8,3849.5,2.59768]
[1733352914481,0.336159,3850.8,3849.3,3.74186557]
[1733352914681,0.7649,3850.9,3849.3,3.74186557]
[1733352914895,0.8112,3850.7,3849.0,0.43296067]
[1733352915112,0.8112,3850.6,3849.1,2.598]
[1733352915352,2.59707,3850.5,3849.1,0.52801236]
[1733352915496,0.8112,3850.4,3849.1,0.52801236]
[1733352915823,3.20694521,3850.6,3847.8,0.3]
[1733352915824,2.59747,3849.9,3848.3,2.59853]
[1733352915976,0.8112,3850.0,3848.2,0.6246]
[1733352916181,0.8112,3849.8,3848.4,3.10483655]
[1733352916376,3.40875,3849.8,3848.4,0.50636655]
[1733352916612,0.8112,3849.6,3848.4,0.50636655]
[1733352916816,2.59123576,3849.5,3848.1,0.4123657]
[1733352916979,2.59787,3849.3,3848.1,0.4123657]
[1733352917410,3.75694521,3849.9,3848.1,0.4123657]
[1733352917411,0.8112,3849.1,3848.1,0.4123657]
[1733352917622,0.340917,3849.0,3848.1,0.4123657]
[1733352917789,3.20694521,3849.5,3847.6,3.12293089]
[1733352917790,0.55,3849.4,3847.6,3.12293089]
[1733352918120,2.59814,3848.9,3847.7,0.4123657]
[1733352918617,2.598,3849.2,3847.7,0.4123657]
[1733352918819,0.3148,3849.1,3847.7,3.4123657]
[1733352919183,2.59801,3849.1,3847.7,3.4123657]
[1733352919484,2.58525682,3849.1,3847.7,3.4123657]
[1733352920478,2.58525682,3849.1,3847.8,3.0]
[1733352920683,2.59807,3849.0,3847.8,3.0]
[1733352920894,0.7755,3848.9,3847.8,3.0]
[1733352921185,0.337357,3848.8,3847.8,3.0]
[1733352921623,0.337357,3848.8,3847.8,2.59887]
[1733352921785,3.98244521,3848.9,3847.9,3.0]
[1733352922815,3.98244521,3848.9,3847.7,3.4123657]
[1733352922995,3.98244521,3848.9,3847.7,3.0]
[1733352925613,6.58059521,3848.9,3847.7,3.0]
[1733352925797,3.98244521,3848.9,3847.4,1.13099485]
[1733352925985,2.99646452,3848.8,3847.5,3.0]
[1733352926815,3.60518973,3848.8,3847.7,3.0]
[1733352927014,3.20694521,3848.8,3848.3,2.59851]
[1733352927197,3.20694521,3848.8,3848.7,2.59827]
[1733352927528,3.20694521,3848.8,3848.7,5.59827]
[1733352928230,3.20694521,3848.8,3848.7,6.12829661]
[1733352930547,0.95657835,3849.8,3848.7,3.0]
[1733352930845,0.8213,3849.6,3847.9,0.7893]
[1733352931017,0.8213,3849.6,3848.0,0.50619635]
[1733352931197,0.2409761,3849.5,3848.1,3.0]
[1733352931400,0.2409761,3849.4,3848.4,2.59847]
[1733352931638,0.2409761,3849.5,3848.4,2.59847]
[1733352931801,0.2409761,3849.5,3848.6,2.59828]
[1733352932005,0.24121015,3849.5,3848.7,2.59822]
[1733352932230,0.42692213,3849.4,3848.7,2.59822]
[1733352932414,0.42692213,3849.4,3848.1,3.0]
[1733352932415,0.42692213,3849.4,3848.5,2.5984]
[1733352933236,0.24161339,3849.3,3848.5,2.5984]
[1733352933436,0.18761603,3849.3,3848.5,2.5984]
[1733352934082,0.24162305,3849.2,3848.5,2.5984]
[1733352934252,0.24162305,3849.1,3848.5,2.5984]
[1733352934541,0.18761603,3849.3,3848.5,2.5984]
[1733352934699,0.18761603,3849.3,3848.0,3.10489635]
[1733352934700,0.24175518,3849.2,3848.0,0.50619635]
[1733352935054,0.24175518,3849.1,3848.5,2.59839]
[1733352935341,0.18761603,3849.3,3848.6,2.59834]
[1733352935342,0.24177472,3849.0,3848.6,2.59834]
[1733352935511,0.57445559,3849.3,3848.6,2.59834]
[1733352935845,0.24177606,3849.2,3848.4,2.59847]
[1733352936014,0.24177606,3849.1,3848.1,3.0]
[1733352936337,0.24177606,3849.0,3848.5,2.59838]
[1733352936543,0.18761603,3849.3,3848.5,2.59838]
[1733352936838,0.18761603,3849.3,3848.1,5.59868]
[1733352936839,0.24179992,3849.2,3848.2,2.59861]
[1733352937048,0.24179992,3849.2,3848.1,5.59868]
[1733352937049,0.24179992,3849.1,3848.6,2.59834]
[1733352937254,0.24179992,3849.0,3848.1,3.0]
[1733352937543,0.18761603,3849.3,3848.8,2.59821]
[1733352937720,0.24182542,3849.2,3848.8,2.59821]